bitfinex-derivatives/quotes_BTCF0:USTF0_20241025
["timestamp","ask_amount","ask_price","bid_price","bid_amount"]
[1729875568353,0.073886,67702.0,67701.0,0.17134255]
[1729875568759,0.3608,67707.0,67701.0,0.09745555]
[1729875568945,0.073882,67706.0,67705.0,0.073881]
[1729875569341,0.073882,67706.0,67705.0,0.17137709]
[1729875570641,0.073882,67706.0,67705.0,0.24511872]
[1729875570841,0.21581161,67706.0,67705.0,0.2451794]
[1729875571854,0.21581161,67706.0,67705.0,0.07374163]
[1729875572951,0.073883,67705.0,67704.0,0.07374163]
[1729875573148,0.21581261,67705.0,67704.0,0.17127281]
[1729875575354,0.21581261,67705.0,67703.0,0.07374163]
[1729875575355,0.073884,67704.0,67703.0,0.07374163]
[1729875575559,0.21581361,67704.0,67703.0,0.17121943]
[1729875575744,0.21581361,67704.0,67703.0,0.07374319]
[1729875575947,0.073885,67703.0,67702.0,0.07374319]
[1729875576148,0.21581461,67703.0,67702.0,0.17124551]
[1729875576558,0.21581461,67703.0,67698.0,0.08850692]
[1729875576559,0.07389,67698.0,67697.0,0.0756]
[1729875577060,0.07389,67698.0,67697.0,0.149491]
[1729875581361,0.21581961,67698.0,67697.0,0.149491]
[1729875582570,0.21581961,67698.0,67697.0,0.0756]
[1729875583449,0.21581961,67698.0,67697.0,0.17316702]
[1729875583653,0.21581961,67698.0,67697.0,0.24688328]
[1729875583853,0.21581961,67698.0,67697.0,0.0756]
[1729875586064,0.33545961,67698.0,67697.0,0.24701537]
[1729875586365,0.33545961,67698.0,67697.0,0.24701535]
[1729875586663,0.33545961,67698.0,67697.0,0.24703514]
[1729875586969,0.21581961,67698.0,67697.0,0.24703514]
[1729875587155,0.21581961,67698.0,67697.0,0.17327866]
[1729875587659,0.21581961,67698.0,67697.0,0.24704037]
[1729875588051,0.21581961,67698.0,67697.0,0.17327866]
[1729875593858,0.21581961,67698.0,67697.0,0.17341779]
[1729875595558,0.21581961,67698.0,67697.0,0.26192471]
[1729875595760,0.07389,67698.0,67697.0,0.26192471]
[1729875595960,0.073886,67705.0,67704.0,0.073884]
[1729875596167,0.073886,67705.0,67704.0,0.17170179]
[1729875596364,0.073886,67705.0,67704.0,0.073884]
[1729875596571,0.09509709,67705.0,67704.0,0.24551301]
[1729875596865,0.09509709,67705.0,67704.0,0.26027747]
[1729875597075,0.09509709,67705.0,67704.0,0.18639078]
[1729875597972,0.09509709,67705.0,67704.0,0.09779207]
[1729875598172,0.09509709,67705.0,67704.0,0.18638872]
[1729875598565,0.073886,67705.0,67704.0,0.073884]
[1729875600270,0.36176,67712.0,67704.0,0.21581361]
[1729875600471,0.073875,67712.0,67711.0,0.21580261]
[1729875600672,0.073875,67712.0,67711.0,0.073873]
[1729875600878,0.073884,67704.0,67703.0,0.53235603]
[1729875601169,0.073884,67704.0,67703.0,0.53159603]
[1729875601170,0.21581361,67704.0,67703.0,0.53159603]
[1729875601568,0.21581361,67704.0,67703.0,0.0759]
[1729875601967,0.073884,67704.0,67703.0,0.0759]
[1729875602272,0.073884,67704.0,67703.0,0.149785]
[1729875603559,0.073884,67704.0,67703.0,0.073885]
[1729875603772,0.07389,67698.0,67697.0,0.0756]
[1729875603967,0.21581961,67698.0,67697.0,0.0756]
[1729875604372,0.57661961,67698.0,67697.0,0.0756]
[1729875605074,0.59779914,67698.0,67697.0,0.0756]
[1729875605280,0.073896,67693.0,67685.0,0.05906367]
[1729875605470,0.21582561,67693.0,67688.0,0.0761]
[1729875605670,0.21582561,67693.0,67692.0,0.10286473]
[1729875605671,0.80095522,67693.0,67692.0,0.10286473]
[1729875605872,0.073902,67688.0,67678.0,0.10336143]
[1729875606173,0.07391,67680.0,67679.0,0.11712455]
[1729875606383,0.07391,67680.0,67668.0,0.54655938]
[1729875606384,0.44328,67680.0,67668.0,0.54655938]
[1729875606681,0.44328,67680.0,67657.0,0.28055246]
[1729875606682,0.3608,67682.0,67670.0,0.14192961]
[1729875606888,0.073913,67677.0,67671.0,0.15087656]
[1729875607068,0.14192961,67677.0,67676.0,0.0590162]
[1729875607267,0.14192961,67677.0,67669.0,0.0809]
[1729875607268,0.14192961,67677.0,67673.0,0.07377656]
[1729875607575,0.0022,67681.0,67669.0,0.0809]
[1729875607576,0.073917,67673.0,67672.0,0.05896808]
[1729875607775,0.073919,67672.0,67666.0,0.07371027]
[1729875607976,0.073925,67666.0,67665.0,0.05897486]
[1729875608181,0.073925,67666.0,67656.0,0.073935]
[1729875608182,0.21585461,67666.0,67663.0,0.05897486]
[1729875608383,0.3608,67667.0,67660.0,0.05897486]
[1729875608384,0.073929,67662.0,67660.0,0.05897486]
[1729875608575,0.14192961,67659.0,67654.0,0.05897486]
[1729875608879,0.11964,67661.0,67647.0,0.0809]
[1729875608880,0.14192961,67655.0,67649.0,0.07371027]
[1729875609071,0.3608,67650.0,67649.0,0.07362786]
[1729875609382,0.3608,67650.0,67649.0,0.05890568]
[1729875609678,0.3608,67650.0,67646.0,0.073947]
[1729875609872,0.073945,67649.0,67646.0,0.073947]
[1729875610072,0.3608,67650.0,67648.0,0.073945]
[1729875610284,0.434737,67656.0,67654.0,0.073938]
[1729875610577,0.3608,67664.0,67655.0,0.21586661]
[1729875610784,0.14192961,67673.0,67663.0,0.14192961]
[1729875610785,0.3608,67670.0,67663.0,0.14192961]
[1729875610981,0.3608,67670.0,67669.0,0.073922]
[1729875611181,0.073915,67675.0,67674.0,0.073916]
[1729875611371,0.3608,67676.0,67667.0,0.14192961]
[1729875611372,0.3608,67676.0,67675.0,0.073915]
[1729875611680,0.073917,67674.0,67672.0,0.073918]
[1729875611869,0.073917,67674.0,67673.0,0.073917]
[1729875612077,0.073917,67674.0,67673.0,0.573917]
[1729875612780,0.14192961,67674.0,67667.0,0.3608]
[1729875612979,0.073926,67665.0,67664.0,0.05890568]
[1729875613282,0.073926,67665.0,67663.0,0.05890568]
[1729875613283,0.073927,67664.0,67663.0,0.05890568]
[1729875613477,0.073928,67663.0,67662.0,0.13283468]
[1729875613676,0.073928,67663.0,67662.0,0.073929]
[1729875614183,0.073925,67667.0,67662.0,0.14192961]
[1729875614377,0.36176,67668.0,67666.0,0.14192961]
[1729875614378,0.3608,67668.0,67666.0,0.14192961]
[1729875614578,0.3608,67668.0,67667.0,0.073924]
[1729875615281,0.434723,67668.0,67667.0,0.073924]
[1729875616282,0.073923,67668.0,67667.0,0.073924]
[1729875618978,0.073927,67665.0,67664.0,0.073926]
[1729875619281,0.073931,67661.0,67660.0,0.07393]
[1729875619474,0.073931,67661.0,67660.0,0.00462339]
[1729875619682,0.073938,67656.0,67655.0,0.073937]
[1729875619879,0.073938,67656.0,67655.0,0.07856064]
[1729875620187,0.073938,67656.0,67655.0,0.073937]
[1729875622885,0.00221733,67675.0,67655.0,1.00507529]
[1729875623084,0.073922,67670.0,67669.0,0.21585061]
[1729875623280,0.14192961,67674.0,67666.0,0.073925]
[1729875623479,0.073924,67667.0,67666.0,0.073925]
[1729875625875,0.073924,67667.0,67659.0,0.05870746]
[1729875625876,0.073932,67660.0,67659.0,0.05870746]
[1729875626073,0.073935,67657.0,67656.0,0.05870746]
[1729875626285,0.14192961,67657.0,67655.0,0.06092455]
[1729875626481,0.073936,67656.0,67655.0,0.00221709]
[1729875629488,0.073949,67644.0,67643.0,0.13265646]
[1729875629690,0.21587861,67644.0,67643.0,0.13265646]
[1729875629886,0.21587861,67644.0,67643.0,0.073949]
[1729875630084,0.21587861,67644.0,67643.0,0.13265646]
[1729875630480,0.21587861,67644.0,67643.0,0.073949]
[1729875630987,0.3608,67648.0,67642.0,0.05870746]
[1729875631183,0.073947,67647.0,67646.0,0.073946]
[1729875632092,0.073947,67647.0,67646.0,0.13265346]
[1729875632493,0.073947,67647.0,67646.0,0.073946]
[1729875632993,0.073947,67647.0,67646.0,0.13280864]
[1729875633184,0.073947,67647.0,67646.0,0.13280852]
[1729875633986,0.36176,67648.0,67639.0,0.3608]
[1729875633987,0.2388,67648.0,67647.0,0.073946]
[1729875634188,0.073936,67656.0,67655.0,0.073935]
[1729875634786,0.073936,67656.0,67655.0,0.573935]
[1729875635384,0.073936,67656.0,67655.0,0.073935]
[1729875635586,0.073936,67656.0,67655.0,0.17099396]
[1729875636193,0.073936,67656.0,67655.0,0.09705896]
[1729875636391,0.073936,67656.0,67654.0,0.07370627]
[1729875636392,0.073937,67655.0,67654.0,0.07370627]
[1729875637186,0.073938,67654.0,67653.0,0.07370627]
[1729875637385,0.073939,67653.0,67652.0,0.22570627]
[1729875637584,0.073939,67653.0,67652.0,0.32313356]
[1729875637788,0.073939,67653.0,67652.0,0.24942729]
[1729875638896,0.073939,67653.0,67652.0,0.32314653]
[1729875639594,0.073939,67653.0,67652.0,0.32315]
[1729875639794,0.073939,67653.0,67652.0,0.32322027]
[1729875639997,0.073939,67653.0,67652.0,0.24949692]
[1729875640895,0.073939,67653.0,67652.0,0.32321583]
[1729875641502,0.073939,67653.0,67652.0,0.32299674]
[1729875641695,0.073939,67653.0,67652.0,0.152]
[1729875642499,0.073939,67653.0,67652.0,0.22572093]
[1729875642701,0.073939,67653.0,67652.0,0.39699514]
[1729875643007,0.073939,67653.0,67652.0,0.32327421]
[1729875643305,0.073937,67657.0,67656.0,0.073936]
[1729875643603,0.14292961,67663.0,67656.0,0.17108111]
[1729875643810,0.073932,67662.0,67661.0,0.073931]
[1729875644013,0.11936,67666.0,67661.0,0.14192961]
[1729875644219,0.11936,67666.0,67665.0,0.073925]
[1729875644220,0.193287,67666.0,67665.0,0.073925]
[1729875644416,0.073927,67666.0,67665.0,0.434725]
[1729875644719,0.073927,67666.0,67665.0,0.3608]
[1729875645613,0.073927,67666.0,67665.0,0.434726]
[1729875646124,0.073927,67666.0,67665.0,0.3608]
[1729875646418,0.073934,67658.0,67657.0,0.0735]
[1729875646618,0.21586361,67658.0,67657.0,0.0735]
[1729875648615,0.073935,67657.0,67652.0,0.0752]
[1729875648814,0.073939,67653.0,67652.0,0.0752]
[1729875650818,0.073939,67653.0,67652.0,0.17209081]
[1729875651217,0.21586861,67653.0,67652.0,0.10151494]
[1729875651418,0.14192961,67653.0,67652.0,0.19004228]
[1729875651720,0.21586861,67653.0,67652.0,0.10151498]
[1729875652115,0.21586861,67653.0,67652.0,0.18541849]
[1729875652324,0.21586861,67653.0,67652.0,0.09689081]
[1729875654715,0.21586861,67653.0,67652.0,0.09647041]
[1729875659020,0.073939,67653.0,67652.0,0.09647041]
[1729875659229,0.073939,67653.0,67652.0,0.09645343]
[1729875659638,0.073939,67653.0,67652.0,0.18506679]
[1729875659925,0.073939,67653.0,67652.0,0.09645343]
[1729875662522,0.073939,67653.0,67652.0,0.09641414]
[1729875663023,0.073939,67653.0,67651.0,0.07386745]
[1729875663230,0.14192961,67652.0,67649.0,0.3608]
[1729875663436,0.073943,67650.0,67649.0,0.3608]
[1729875663627,0.073943,67650.0,67649.0,0.54589693]
[1729875663935,0.073943,67650.0,67649.0,0.61984093]
[1729875664130,0.02080099,67659.0,67649.0,0.61984093]
[1729875664131,0.073938,67654.0,67653.0,0.073939]
[1729875664340,0.073934,67658.0,67657.0,0.073935]
[1729875664634,0.14192961,67668.0,67657.0,0.23841318]
[1729875664831,0.073929,67663.0,67662.0,0.073928]
[1729875665038,0.3608,67673.0,67662.0,0.23841318]
[1729875665330,0.073922,67669.0,67668.0,0.43465392]
[1729875665532,0.21585161,67669.0,67668.0,0.3608]
[1729875665731,0.21585161,67669.0,67668.0,0.43465392]
[1729875665933,0.21585161,67669.0,67668.0,0.3608]
[1729875668137,0.073922,67669.0,67668.0,0.434723]
[1729875668336,0.073922,67669.0,67668.0,0.57665261]
[1729875669239,0.073922,67669.0,67668.0,0.795523]
[1729875670429,0.073919,67672.0,67671.0,0.073919]
[1729875670631,0.073919,67672.0,67671.0,0.21584861]
[1729875670934,0.14192961,67683.0,67671.0,0.14192961]
[1729875671139,0.07391,67680.0,67679.0,0.3608]
[1729875673641,0.21583961,67680.0,67679.0,0.3608]
[1729875676337,0.073917,67673.0,67672.0,0.0772]
[1729875676729,0.073922,67669.0,67667.0,0.02172096]
[1729875676929,0.073922,67669.0,67663.0,0.40586035]
[1729875677135,0.073927,67664.0,67663.0,0.40586035]
[1729875677344,0.073927,67664.0,67663.0,0.3608]
[1729875677550,0.073927,67664.0,67663.0,0.434728]
[1729875677749,0.073927,67664.0,67663.0,0.5007131]
[1729875678444,0.073927,67664.0,67663.0,0.45641275]
[1729875678644,0.14192961,67670.0,67669.0,0.07392]
[1729875678645,0.073922,67670.0,67669.0,0.07392]
[1729875678936,0.073917,67674.0,67673.0,0.073917]
[1729875679145,0.073913,67678.0,67677.0,0.073913]
[1729875679334,0.073913,67678.0,67677.0,0.57664261]
[1729875679939,0.073907,67684.0,67683.0,0.073905]
[1729875680251,0.00221689,67694.0,67683.0,0.50272961]
[1729875680546,0.00221689,67694.0,67690.0,0.3608]
[1729875680547,0.073898,67691.0,67690.0,0.3608]
[1729875681745,0.073898,67691.0,67690.0,0.47899935]
[1729875682039,0.073898,67691.0,67690.0,0.434699]
[1729875682234,0.00221689,67694.0,67693.0,0.073896]
[1729875682434,0.00221689,67694.0,67693.0,0.25996797]
[1729875682635,0.00221689,67694.0,67693.0,0.21582561]
[1729875683238,0.11932,67712.0,67693.0,0.28842561]
[1729875683448,0.073879,67708.0,67707.0,0.14192961]
[1729875683747,0.073879,67708.0,67705.0,0.3608]
[1729875683748,0.073881,67706.0,67705.0,0.3608]
[1729875683939,0.21581061,67706.0,67705.0,0.3608]
[1729875684442,0.073881,67706.0,67705.0,0.3608]
[1729875684645,0.073881,67706.0,67705.0,0.434683]
[1729875686147,0.073881,67706.0,67705.0,0.3608]
[1729875687049,0.073895,67694.0,67693.0,0.48054035]
[1729875687344,0.21582461,67694.0,67693.0,0.43561579]
[1729875687549,0.21582461,67694.0,67693.0,0.50951179]
[1729875687746,0.073895,67694.0,67693.0,0.50951179]
[1729875688049,0.073895,67694.0,67693.0,0.5535565]
[1729875688351,0.073895,67694.0,67693.0,0.50951179]
[1729875688542,0.073895,67694.0,67693.0,0.5535565]
[1729875689048,0.26509656,67694.0,67693.0,0.22852242]
[1729875689349,0.26509656,67694.0,67693.0,0.073896]
[1729875690951,0.2058561,67694.0,67693.0,0.073896]
[1729875691451,0.1319611,67694.0,67693.0,0.073896]
[1729875692153,0.1319611,67694.0,67693.0,1.01978561]
[1729875692154,0.06990156,67694.0,67693.0,1.01978561]
[1729875692340,0.2599446,67694.0,67693.0,1.01978561]
[1729875692953,0.2492835,67694.0,67693.0,1.23991318]
[1729875693157,0.2492835,67694.0,67693.0,0.79675318]
[1729875693341,0.05924046,67694.0,67693.0,1.23991318]
[1729875694961,0.05924046,67698.0,67697.0,0.073891]
[1729875695252,0.05924046,67698.0,67697.0,0.21582061]
[1729875695457,0.05924046,67698.0,67697.0,0.65898061]
[1729875695955,0.073884,67704.0,67703.0,0.073885]
[1729875696256,0.02678063,67704.0,67703.0,0.21581461]
[1729875697654,0.073878,67709.0,67708.0,0.073879]
[1729875697846,0.14192961,67710.0,67705.0,0.14192961]
[1729875698047,0.073881,67706.0,67705.0,0.14192961]
[1729875698244,0.10066163,67706.0,67705.0,0.14192961]
[1729875698642,0.10066163,67706.0,67705.0,0.073883]
[1729875703548,0.02678063,67706.0,67705.0,0.073883]
[1729875703953,0.02678063,67706.0,67705.0,0.21581261]
[1729875704852,0.10066163,67706.0,67705.0,0.21581261]
[1729875709662,0.02678063,67706.0,67701.0,0.38220756]
[1729875709865,0.10066663,67704.0,67703.0,0.073884]
[1729875710654,0.02678063,67704.0,67703.0,0.073884]
[1729875710857,0.17011631,67714.0,67703.0,0.29304381]
[1729875710858,0.073881,67707.0,67703.0,0.29304381]
[1729875711062,0.03171792,67707.0,67706.0,0.21581061]
[1729875711265,0.03171792,67707.0,67706.0,0.43497042]
[1729875715762,0.03171792,67707.0,67706.0,0.43402273]
[1729875718562,0.03171792,67707.0,67706.0,0.53721743]
[1729875718760,0.03171792,67707.0,67706.0,0.43402273]
[1729875718966,0.06447329,67707.0,67706.0,0.21581061]
[1729875719467,0.09624331,67714.0,67712.0,0.073874]
[1729875719468,0.073874,67713.0,67712.0,0.073874]
[1729875719673,0.032887,67713.0,67712.0,0.21580461]
[1729875720367,0.10703394,67713.0,67712.0,0.21580461]
[1729875721164,0.03315994,67713.0,67712.0,0.21580461]
[1729875721872,0.03315994,67713.0,67712.0,0.23681374]
[1729875722370,0.073868,67719.0,67718.0,0.073867]
[1729875722567,0.03410035,67719.0,67718.0,0.21579661]
[1729875723471,0.03410035,67719.0,67718.0,0.21579761]
[1729875723472,0.03421635,67719.0,67718.0,0.21579761]
[1729875723771,0.10808335,67719.0,67718.0,0.21579761]
[1729875723984,0.10808335,67719.0,67716.0,0.8608]
[1729875723985,0.073869,67717.0,67716.0,0.00076]
[1729875724276,0.073878,67709.0,67703.0,0.434685]
[1729875724457,0.25002396,67709.0,67703.0,0.36156]
[1729875724657,0.25002396,67709.0,67703.0,0.3608]
[1729875725067,0.21580761,67709.0,67703.0,0.3608]
[1729875725456,0.2492005,67709.0,67703.0,0.3608]
[1729875725661,0.2492005,67709.0,67704.0,0.07609823]
[1729875726159,0.21580761,67709.0,67708.0,0.09894333]
[1729875727573,0.23741179,67709.0,67708.0,0.09894333]
[1729875729169,0.21580761,67709.0,67708.0,0.09894333]
[1729875729471,0.35773722,67709.0,67708.0,0.09894333]
[1729875729661,0.44308,67708.0,67705.0,0.07381622]
[1729875729864,0.44308,67708.0,67704.0,0.00221523]
[1729875729865,0.073883,67705.0,67704.0,0.00221523]
[1729875730164,0.21581261,67705.0,67704.0,0.00221523]
[1729875730364,0.65893261,67705.0,67704.0,0.00221523]
[1729875731171,0.073888,67700.0,67699.0,0.21574583]
[1729875731472,0.147879,67708.0,67707.0,0.07388]
[1729875732263,0.147879,67708.0,67707.0,0.14766017]
[1729875732474,0.073876,67712.0,67711.0,0.073875]
[1729875732870,0.073876,67712.0,67711.0,0.434675]
[1729875733076,0.07608279,67720.0,67711.0,0.50272961]
[1729875733274,0.07608279,67720.0,67719.0,0.28955587]
[1729875733470,0.07608279,67720.0,67719.0,0.073867]
[1729875733668,0.00221579,67720.0,67719.0,0.71579661]
[1729875733869,0.00221579,67720.0,67719.0,1.07659661]
[1729875734072,0.073859,67727.0,67720.0,0.073866]
[1729875734275,0.073859,67727.0,67726.0,0.07386]
[1729875737594,0.073853,67733.0,67732.0,0.073852]
[1729875737776,0.14192961,67735.0,67729.0,0.07365051]
[1729875737981,0.073856,67729.0,67728.0,0.073857]
[1729875738281,0.3608,67736.0,67725.0,0.3608]
[1729875738282,0.073852,67733.0,67732.0,0.073852]
[1729875740685,0.073856,67730.0,67729.0,0.073856]
[1729875740883,0.073856,67730.0,67728.0,0.0736311]
[1729875740884,0.14192961,67730.0,67728.0,0.0736311]
[1729875741180,0.073863,67723.0,67722.0,0.073864]
[1729875744972,0.10965042,67723.0,67722.0,0.073864]
[1729875745174,0.073863,67723.0,67722.0,0.073864]
[1729875745374,0.50711819,67745.0,67722.0,1.16152322]
[1729875745572,0.073842,67743.0,67740.0,0.14192961]
[1729875745774,0.073842,67743.0,67740.0,0.21577361]
[1729875746484,0.073842,67743.0,67740.0,0.073844]
[1729875746689,0.07605822,67741.0,67740.0,0.073844]
[1729875746982,0.073848,67737.0,67736.0,0.073848]
[1729875747182,0.14192961,67737.0,67733.0,0.50076]
[1729875747390,0.07385,67735.0,67734.0,0.07385]
[1729875747687,0.1104357,67735.0,67734.0,0.07385]
[1729875748579,0.07385,67735.0,67734.0,0.07385]
[1729875749989,0.0211976,67739.0,67733.0,0.36156]
[1729875750188,0.073847,67738.0,67737.0,0.13263749]
[1729875750383,0.00221522,67741.0,67733.0,0.3608]
[1729875750384,0.00221522,67741.0,67740.0,0.073844]
[1729875750585,0.07605822,67741.0,67740.0,0.073844]
[1729875750888,0.07605822,67741.0,67740.0,0.11793038]
[1729875751199,0.07605822,67741.0,67740.0,0.073844]
[1729875751980,0.073844,67740.0,67739.0,0.04408638]
[1729875752186,0.073848,67737.0,67736.0,0.04408638]
[1729875752385,0.07385,67735.0,67734.0,0.07385]
[1729875755389,0.07385,67735.0,67734.0,0.13263126]
[1729875755594,0.07385,67735.0,67734.0,0.07385]
[1729875758690,0.00221522,67741.0,67732.0,0.14192961]
[1729875758887,0.00221522,67741.0,67738.0,0.073845]
[1729875758888,0.073846,67739.0,67738.0,0.073845]
[1729875759097,0.02398886,67741.0,67740.0,0.073844]
[1729875759098,0.00221522,67741.0,67740.0,0.073844]
[1729875760793,0.00221522,67741.0,67740.0,0.21577361]
[1729875760984,0.0805,67749.0,67740.0,0.14192961]
[1729875761185,0.11093325,67748.0,67747.0,0.21576561]
[1729875761385,0.11098976,67748.0,67747.0,0.21576561]
[1729875762189,0.073837,67748.0,67747.0,0.21576561]
[1729875762394,0.11123571,67748.0,67747.0,0.21576561]
[1729875763494,0.073837,67748.0,67747.0,0.31118259]
[1729875763893,0.073837,67748.0,67747.0,0.16925298]
[1729875764089,0.073837,67748.0,67747.0,0.16907395]
[1729875764400,0.073838,67746.0,67743.0,0.073841]
[1729875764588,0.21576861,67745.0,67744.0,0.16922062]
[1729875765601,0.21576861,67745.0,67744.0,0.0736565]
[1729875766394,0.21576861,67745.0,67744.0,0.16934556]
[1729875766895,0.073835,67750.0,67749.0,0.073834]
[1729875767789,0.073835,67750.0,67749.0,0.14749287]
[1729875767986,0.073835,67750.0,67749.0,0.2428651]
[1729875768497,0.073835,67750.0,67749.0,0.24287934]
[1729875768689,0.073835,67750.0,67749.0,0.16922047]
[1729875769394,0.07383,67755.0,67754.0,0.073828]
[1729875769592,0.3608,67758.0,67754.0,0.14192961]
[1729875769790,0.3608,67758.0,67757.0,0.073826]
[1729875769991,0.434625,67758.0,67757.0,0.073826]
[1729875771199,0.073821,67762.0,67761.0,0.073819]
[1729875771494,0.073821,67762.0,67761.0,0.21574861]
[1729875771693,0.07603248,67764.0,67763.0,0.073819]
[1729875772305,0.07603248,67764.0,67763.0,0.13270315]
[1729875772306,0.00221448,67764.0,67763.0,0.13270315]
[1729875772599,0.00221448,67764.0,67763.0,0.073819]
[1729875773294,0.00221448,67764.0,67763.0,0.11793281]
[1729875773599,0.07603248,67764.0,67763.0,0.073819]
[1729875773795,0.07603248,67764.0,67763.0,0.11793823]
[1729875774194,0.07603248,67764.0,67763.0,0.073819]
[1729875774392,0.00221448,67764.0,67763.0,0.11792992]
[1729875774596,0.00221448,67764.0,67763.0,0.073819]
[1729875778292,0.073816,67766.0,67765.0,0.073817]
[1729875778500,0.20745363,67766.0,67765.0,0.03616679]
[1729875778693,0.20745363,67766.0,67765.0,0.1780964]
[1729875778898,0.13363763,67766.0,67765.0,0.08724215]
[1729875779094,0.19363072,67766.0,67765.0,0.16105915]
[1729875779400,0.13363763,67766.0,67765.0,0.16105915]
[1729875781794,0.13363763,67766.0,67765.0,0.65846661]
[1729875782398,0.13363763,67766.0,67765.0,0.68014843]
[1729875783198,0.13363763,67766.0,67765.0,0.073817]
[1729875783403,0.20745363,67766.0,67765.0,0.073817]
[1729875783806,0.13363763,67766.0,67765.0,0.516537]
[1729875784104,0.073812,67771.0,67770.0,0.073812]
[1729875784299,0.20185215,67771.0,67770.0,0.073812]
[1729875784704,0.20227938,67771.0,67770.0,0.073812]
[1729875785098,0.073814,67768.0,67767.0,0.434614]
[1729875785297,0.20228138,67768.0,67767.0,0.434614]
[1729875785692,0.073814,67768.0,67767.0,0.434614]
[1729875788208,0.073809,67774.0,67773.0,0.073808]
[1729875790398,0.073811,67771.0,67770.0,0.21573961]
[1729875790599,0.14192961,67772.0,67767.0,0.3608]
[1729875790808,0.14192961,67772.0,67761.0,0.435381]
[1729875790809,0.07382,67762.0,67761.0,0.435381]
[1729875791005,0.07382,67762.0,67761.0,0.434621]
[1729875792500,0.07382,67762.0,67761.0,0.3608]
[1729875793605,0.16603941,67762.0,67761.0,0.24260649]
[1729875793799,0.20317763,67762.0,67761.0,0.24260649]
[1729875794009,0.28357763,67762.0,67761.0,0.24260649]
[1729875794418,0.20317763,67762.0,67761.0,0.4583571]
[1729875794713,0.08025743,67762.0,67761.0,0.4583571]
[1729875795909,0.03713822,67762.0,67761.0,0.4583571]
[1729875796299,0.073818,67765.0,67764.0,0.073818]
[1729875796503,0.15266616,67765.0,67764.0,0.073818]
[1729875796907,0.15266616,67765.0,67764.0,0.573818]
[1729875797109,0.12709938,67765.0,67764.0,0.573818]
[1729875797707,0.20091638,67765.0,67764.0,0.5]
[1729875797909,0.20098265,67765.0,67764.0,0.5]
[1729875799918,0.12716565,67765.0,67764.0,0.573818]
[1729875800212,0.12766492,67765.0,67764.0,0.573818]
[1729875800404,0.07889745,67765.0,67764.0,0.573818]
[1729875800603,0.0797417,67771.0,67764.0,0.573818]
[1729875800808,0.0797417,67770.0,67769.0,0.073813]
[1729875801104,0.0797417,67770.0,67769.0,0.21574261]
[1729875801711,0.3608,67772.0,67771.0,0.073811]
[1729875802214,0.073808,67774.0,67771.0,0.073811]
[1729875802412,0.073808,67774.0,67773.0,0.073808]
[1729875804311,0.02329198,67780.0,67772.0,0.07362578]
[1729875804312,0.14192961,67778.0,67772.0,0.07362578]
[1729875804511,0.073809,67772.0,67771.0,0.07362578]
[1729875804720,0.073809,67772.0,67771.0,0.07372948]
[1729875804919,0.073809,67772.0,67771.0,0.16977748]
[1729875805215,0.073811,67771.0,67770.0,0.07372948]
[1729875805412,0.21574061,67771.0,67770.0,0.16980113]
[1729875806219,0.073811,67771.0,67770.0,0.16980113]
[1729875807812,0.073811,67771.0,67770.0,0.07372948]
[1729875808715,0.073814,67768.0,67767.0,0.435374]
[1729875808913,0.073814,67768.0,67767.0,0.434614]
[1729875808914,0.11068586,67768.0,67767.0,0.434614]
[1729875810625,0.11068586,67768.0,67767.0,0.3608]
[1729875810626,0.25261547,67768.0,67767.0,0.3608]
[1729875810810,0.073817,67765.0,67764.0,0.5008]
[1729875811115,0.11068886,67765.0,67764.0,0.5]
[1729875814624,0.47148886,67765.0,67761.0,0.00084]
[1729875814818,0.073827,67756.0,67755.0,0.3608]
[1729875815011,0.25262847,67756.0,67755.0,0.3608]
[1729875815214,0.25262847,67756.0,67755.0,0.8608]
[1729875815419,0.11069886,67756.0,67755.0,0.934628]
[1729875815913,0.11014791,67756.0,67755.0,0.934628]
[1729875816718,0.14192961,67759.0,67755.0,1.146145]
[1729875816916,0.14192961,67759.0,67756.0,0.211517]
[1729875817120,0.14192961,67759.0,67757.0,0.211517]
[1729875817318,0.21575361,67759.0,67758.0,0.211517]
[1729875817924,0.21575361,67759.0,67758.0,0.09649667]
[1729875818823,0.57655361,67759.0,67758.0,0.09649667]
[1729875819122,0.57655361,67759.0,67754.0,0.07368812]
[1729875819123,0.073828,67755.0,67754.0,0.07368812]
[1729875819334,0.073833,67750.0,67749.0,0.08845188]
[1729875819529,0.3608,67750.0,67748.0,0.08845188]
[1729875819825,0.3608,67750.0,67747.0,0.002214]
[1729875819826,0.073836,67748.0,67747.0,0.002214]
[1729875821622,0.65860561,67748.0,67747.0,0.05889596]
[1729875821826,0.68039253,67748.0,67744.0,0.05889596]
[1729875822136,0.073841,67743.0,67742.0,0.04417504]
[1729875822330,0.57657061,67743.0,67742.0,0.04417504]
[1729875822828,0.57657061,67743.0,67739.0,0.05889596]
[1729875823132,0.57657061,67743.0,67737.0,0.05889596]
[1729875823319,0.073842,67742.0,67741.0,0.04412095]
[1729875824121,0.435801,67743.0,67739.0,0.04412095]
[1729875824327,0.073845,67739.0,67735.0,0.05889596]
[1729875824526,0.434641,67743.0,67727.0,0.44524]
[1729875824527,0.073852,67733.0,67731.0,0.073853]
[1729875824823,0.073853,67732.0,67731.0,0.073853]
[1729875825432,0.073846,67739.0,67738.0,0.073844]
[1729875825630,0.434641,67743.0,67742.0,0.073842]
[1729875826233,0.073841,67743.0,67742.0,0.073842]
[1729875826744,0.073841,67743.0,67742.0,0.573842]
[1729875828035,0.073841,67743.0,67742.0,0.5]
[1729875828537,0.073851,67735.0,67731.0,0.02085039]
[1729875828739,0.14192961,67735.0,67732.0,0.073852]
[1729875829047,0.14192961,67735.0,67733.0,0.5]
[1729875829048,0.073851,67734.0,67733.0,0.5]
[1729875829641,0.14192961,67742.0,67733.0,0.5]
[1729875829842,0.14192961,67742.0,67735.0,0.073849]
[1729875830148,0.073849,67736.0,67735.0,0.073849]
[1729875837148,0.073849,67736.0,67735.0,0.09489799]
[1729875839950,0.3608,67742.0,67738.0,0.073846]
[1729875840147,0.14192961,67751.0,67741.0,0.073843]
[1729875840348,0.12308,67756.0,67748.0,0.14192961]
[1729875840553,0.434635,67749.0,67748.0,0.21576561]
[1729875840845,0.434635,67749.0,67748.0,0.073836]
[1729875841048,0.434635,67749.0,67748.0,0.573836]